fUST/lending_fUST_20250812
["ID","MTS","AMOUNT","RATE_DAILY","PERIOD"]
[378717781,1754989851524,-151.0,0.00018918,2]
[378717782,1754989851534,-660.19,0.00018918,2]
[378717784,1754989851543,-151.0,0.00018918,2]
[378717786,1754989851552,-462.48596923,0.00018918,2]
[378717788,1754989851561,-462.74056031,0.00018918,2]
[378717790,1754989851570,-703.67,0.00018918,2]
[378717792,1754989851579,-1571.34,0.00018918,2]
[378717794,1754989851588,-151.0,0.00018918,2]
[378717796,1754989851597,-479.36,0.00018918,2]
[378717798,1754989851607,-460.0,0.00018918,2]
[378717800,1754989851616,-460.0,0.00018918,2]
[378717802,1754989851625,-460.0,0.00018918,2]
[378717804,1754989851636,-961.98,0.00018918,2]
[378717806,1754989851645,-460.0,0.00018918,2]
[378717808,1754989851654,-460.0,0.00018918,2]
[378717810,1754989851664,-460.0,0.00018918,2]
[378717812,1754989851672,-460.0,0.00018918,2]
[378717814,1754989851690,-596.7,0.00018918,2]
[378717816,1754989851699,-548.06,0.00018918,2]
[378717818,1754989851708,-851.89,0.00018918,2]
[378717820,1754989851718,-460.0,0.00018918,2]
[378717822,1754989851728,-460.0,0.00018918,2]
[378717824,1754989851737,-460.0,0.00018918,2]
[378717826,1754989851747,-703.0,0.00018918,2]
[378717827,1754989851756,-460.0,0.00018918,2]
[378717828,1754989851765,-151.0,0.00018918,2]
[378717829,1754989851774,-460.0,0.00018918,2]
[378717830,1754989851783,-534.6,0.00018918,2]
[378717831,1754989851793,-151.0,0.00018918,2]
[378717832,1754989851802,-1574.67,0.00018918,2]
[378717833,1754989851811,-460.0,0.00018918,2]
[378717834,1754989851820,-460.0,0.00018918,2]
[378717835,1754989851829,-651.47,0.00018918,2]
[378717836,1754989851838,-460.0,0.00018918,2]
[378717837,1754989851848,-460.0,0.00018918,2]
[378717839,1754989851858,-460.0,0.00018918,2]
[378717841,1754989851867,-3457.047158,0.00018918,2]
[378717843,1754989851877,-460.0,0.00018918,2]
[378717845,1754989851886,-3457.047158,0.00018918,2]
[378717847,1754989851895,-460.0,0.00018918,2]
[378717849,1754989851905,-460.0,0.00018918,2]
[378717851,1754989851914,-460.0,0.00018918,2]
[378717853,1754989851923,-528.06682035,0.00018918,2]
[378717855,1754989851932,-460.0,0.00018918,2]
[378717857,1754989851941,-2172.38,0.00018918,2]
[378717859,1754989851950,-460.0,0.00018918,2]
[378717861,1754989851959,-460.0,0.00018918,2]
[378717863,1754989851969,-460.0,0.00018918,2]
[378717865,1754989851978,-460.0,0.00018918,2]
[378717867,1754989851987,-452.1034104,0.00018918,2]
[378717869,1754989851996,-460.0,0.00018918,2]
[378717871,1754989852006,-460.0,0.00018918,2]
[378717873,1754989852016,-460.0,0.00018918,2]
[378717875,1754989852025,-460.0,0.00018918,2]
[378717877,1754989852035,-460.0,0.00018918,2]
[378717879,1754989852044,-460.0,0.00018918,2]
[378717881,1754989852053,-151.0,0.00018918,2]
[378717883,1754989852062,-460.0,0.00018918,2]
[378717886,1754989852075,-460.0,0.00018918,2]
[378717888,1754989852085,-460.0,0.00018918,2]
[378717890,1754989852094,-460.0,0.00018918,2]
[378717892,1754989852103,-460.0,0.0001892,2]
[378717894,1754989852113,-460.0,0.0001892,2]
[378717896,1754989852122,-460.0,0.0001892,2]
[378717898,1754989852131,-527.48,0.0001892,2]
[378717900,1754989852140,-527.48,0.0001892,2]
[378717902,1754989852149,-460.0,0.0001892,2]
[378717904,1754989852158,-460.0,0.0001892,2]
[378717906,1754989852167,-460.0,0.0001892,2]
[378717908,1754989852176,-460.0,0.0001892,2]
[378717910,1754989852185,-460.0,0.0001892,2]
[378717912,1754989852194,-460.0,0.0001892,2]
[378717914,1754989852203,-460.0,0.0001892,2]
[378717916,1754989852213,-480.2558638,0.0001892,2]
[378717918,1754989852222,-460.0,0.0001892,2]
[378717920,1754989852231,-460.0,0.0001892,2]
[378717922,1754989852240,-460.0,0.0001892,2]
[378717924,1754989852249,-460.0,0.0001892,2]
[378717926,1754989852258,-460.0,0.0001892,2]
[378717928,1754989852268,-519.91,0.0001892,2]
[378717930,1754989852277,-460.0,0.0001892,2]
[378717932,1754989852286,-460.0,0.0001892,2]
[378717934,1754989852295,-460.0,0.0001892,2]
[378717936,1754989852305,-536.22,0.0001892,2]
[378717938,1754989852314,-407.71042475,0.0001892,2]
[378717940,1754989852323,-460.0,0.0001892,2]
[378717942,1754989852332,-460.0,0.0001892,2]
[378717944,1754989852341,-460.0,0.0001892,2]
[378717946,1754989852351,-460.0,0.0001892,2]
[378717948,1754989852360,-460.0,0.0001892,2]
[378717950,1754989852369,-460.0,0.0001892,2]
[378717952,1754989852379,-238.67174852,0.0001892,2]
[378717954,1754989852388,-460.0,0.0001892,2]
[378717956,1754989852397,-500.0,0.0001892,2]
[378717958,1754989852406,-323.04431995,0.0001892,2]
[378717975,1754989852560,-460.0,0.0001892,2]
[378717978,1754989852571,-463.95288536,0.0001892,2]
[378717979,1754989852580,-460.0,0.0001892,2]
[378717982,1754989852589,-474.78826314,0.0001892,2]
[378717984,1754989852599,-460.0,0.0001892,2]
[378717986,1754989852608,-460.0,0.0001892,2]
[378717988,1754989852618,-461.25548411,0.0001892,2]
[378717990,1754989852627,-460.0,0.0001892,2]
[378717992,1754989852637,-460.0,0.0001892,2]
[378717994,1754989852647,-460.0,0.0001892,2]
[378717996,1754989852656,-493.04224687,0.0001892,2]
[378717998,1754989852665,-460.0,0.0001892,2]
[378718000,1754989852675,-460.0,0.0001892,2]
[378718002,1754989852691,-332.7445681,0.0001892,2]
[378718004,1754989852700,-462.38994369,0.0001892,2]
[378718006,1754989852709,-460.0,0.0001892,2]
[378718008,1754989852718,-460.0,0.0001892,2]
[378718009,1754989852727,-484.50654063,0.0001892,2]
[378718011,1754989852736,-500.0,0.0001892,2]
[378718013,1754989852745,-460.0,0.0001892,2]
[378718015,1754989852754,-460.0,0.0001892,2]
[378718017,1754989852765,-460.0,0.0001892,2]
[378718019,1754989852774,-460.0,0.0001892,2]
[378718021,1754989852783,-460.0,0.0001892,2]
[378718023,1754989852793,-460.0,0.0001892,2]
[378718025,1754989852802,-460.0,0.0001892,2]
[378718027,1754989852811,-460.0,0.0001892,2]
[378718029,1754989852820,-460.0,0.0001892,2]
[378718031,1754989852829,-460.0,0.0001892,2]
[378718033,1754989852838,-460.0,0.0001892,2]
[378718035,1754989852847,-460.0,0.0001892,2]
[378718037,1754989852856,-339.29147138,0.0001892,2]
[378718039,1754989852865,-224.31807,0.0001892,2]
[378718041,1754989852874,-460.0,0.0001892,2]
[378718043,1754989852883,-460.0,0.0001892,2]
[378718045,1754989852892,-550.0,0.0001892,2]
[378718047,1754989852901,-460.0,0.0001892,2]
[378718049,1754989852911,-460.0,0.0001892,2]
[378718051,1754989852920,-460.0,0.0001892,2]
[378718053,1754989852929,-515.1,0.0001892,2]
[378718055,1754989852938,-315.72091378,0.0001892,2]
[378718057,1754989852947,-460.0,0.0001892,2]
[378718059,1754989852957,-1117.38,0.0001892,2]
[378718061,1754989852966,-476.38556634,0.0001892,2]
[378718063,1754989852975,-466.29801671,0.0001892,2]
[378718065,1754989852984,-460.0,0.0001892,2]
[378718067,1754989852994,-460.0,0.0001892,2]
[378718069,1754989853003,-460.0,0.0001892,2]
[378718071,1754989853012,-460.0,0.0001892,2]
[378718072,1754989853022,-460.0,0.0001892,2]
[378718074,1754989853032,-462.34270753,0.0001892,2]
[378718076,1754989853041,-464.45642326,0.0001892,2]
[378718078,1754989853050,-151.0,0.0001892,2]
[378718080,1754989853060,-460.0,0.0001892,2]
[378718082,1754989853070,-460.0,0.0001892,2]
[378718084,1754989853079,-460.0,0.0001892,2]
[378718086,1754989853088,-460.0,0.0001892,2]
[378718088,1754989853098,-460.0,0.0001892,2]
[378718090,1754989853107,-837.98,0.0001892,2]
[378718092,1754989853116,-464.58584615,0.0001892,2]
[378718094,1754989853125,-460.0,0.0001892,2]
[378718096,1754989853134,-460.0,0.0001892,2]
[378718098,1754989853144,-407.99281479,0.0001892,2]
[378718100,1754989853153,-460.0,0.0001892,2]
[378718102,1754989853163,-460.0,0.0001892,2]
[378718104,1754989853172,-462.15741292,0.0001892,2]
[378718106,1754989853181,-460.0,0.0001892,2]
[378718108,1754989853190,-460.0,0.0001892,2]
[378718110,1754989853200,-460.0,0.0001892,2]
[378718112,1754989853209,-461.21511065,0.0001892,2]
[378718115,1754989853219,-460.0,0.0001892,2]
[378718117,1754989853229,-460.0,0.0001892,2]
[378718119,1754989853238,-460.0,0.0001892,2]
[378718121,1754989853248,-151.0,0.0001892,2]
[378718122,1754989853256,-527.48,0.00018921,2]
[378718124,1754989853266,-151.0,0.00018921,2]
[378718126,1754989853275,-460.0,0.00018921,2]
[378718128,1754989853284,-460.0,0.00018921,2]
[378718130,1754989853294,-460.0,0.00018921,2]
[378718132,1754989853303,-3457.047158,0.00018921,2]
[378718134,1754989853312,-3457.047158,0.00018921,2]
[378718136,1754989853322,-527.48,0.00018922,2]
[378718138,1754989853331,-527.48,0.00018922,2]
[378718140,1754989853340,-527.48,0.00018922,2]
[378718142,1754989853349,-430.826,0.00018923,2]
[378718144,1754989853359,-150.92772289,0.00018924,2]
[378718145,1754989853368,-527.48,0.00018925,2]
[378718146,1754989853377,-527.48,0.00018925,2]
[378718147,1754989853386,-527.48,0.00018925,2]
[378718148,1754989853396,-527.48,0.00018925,2]
[378718149,1754989853405,-527.54879212,0.00018925,2]
[378718150,1754989853414,-502.469,0.00018926,2]
[378718151,1754989853423,-151.0,0.00018931,2]
[378718152,1754989853432,-500.0,0.00018931,2]
[378718153,1754989853441,-151.0,0.00018931,2]
[378718154,1754989853450,-500.0,0.00018931,2]
[378718155,1754989853459,-151.0,0.00018931,2]
[378718157,1754989853468,-500.0,0.00018931,2]
[378718159,1754989853478,-500.0,0.00018931,2]
[378718161,1754989853487,-3056.0,0.00018931,2]
[378718163,1754989853496,-151.0,0.00018931,2]
[378718165,1754989853505,-151.0,0.00018931,2]
[378718167,1754989853514,-152.3627036,0.00018931,2]
[378718169,1754989853523,-500.0,0.00018931,2]
[378718171,1754989853532,-500.0,0.00018931,2]
[378718173,1754989853542,-500.0,0.00018931,2]
[378718175,1754989853551,-151.0,0.00018931,2]
[378718177,1754989853560,-151.0,0.00018931,2]
[378718179,1754989853570,-151.0,0.00018931,2]
[378718181,1754989853580,-500.0,0.00018931,2]
[378718183,1754989853590,-225.67906981,0.00018931,2]
[378718185,1754989853599,-151.0,0.00018931,2]
[378718187,1754989853608,-265.96506597,0.00018931,2]
[378718189,1754989853618,-151.0,0.00018931,2]
[378718191,1754989853627,-151.0,0.00018931,2]
[378718193,1754989853637,-500.0,0.00018931,2]
[378718194,1754989853646,-500.0,0.00018931,2]
[378718196,1754989853656,-500.0,0.00018931,2]
[378718198,1754989853665,-151.0,0.00018931,2]
[378718200,1754989853675,-160.0,0.00018947,2]
[378718202,1754989853690,-160.0,0.00018951,2]
[378718204,1754989853699,-417.15472785,0.00018951,2]
[378718206,1754989853709,-461.76100612,0.00018951,2]
[378718208,1754989853718,-216.70963917,0.00018951,2]
[378718210,1754989853729,-160.0,0.00018951,2]
[378718212,1754989853739,-215.52532928,0.00018951,2]
[378718214,1754989853748,-160.0,0.00018951,2]
[378718216,1754989853757,-528.03329096,0.00018951,2]
[378718218,1754989853770,-160.0,0.00018951,2]
[378718220,1754989853780,-160.0,0.00018951,2]
[378718222,1754989853791,-843.25559725,0.00018951,2]
[378718224,1754989853800,-160.0,0.00018951,2]
[378718226,1754989853810,-232.0176383,0.00018951,2]
[378718228,1754989853820,-160.0,0.00018959,2]
[378718230,1754989853830,-160.0,0.00018966,2]
[378718232,1754989853840,-12673.43806534,0.00018966,2]
[378718234,1754989853850,-151.0,0.00018966,2]
[378718236,1754989853859,-500.0,0.00018973,2]
[378718238,1754989853869,-500.0,0.00018973,2]
[378718240,1754989853878,-417.0,0.00018988,2]
[378718242,1754989853888,-3000.0,0.00018996,2]
[378718244,1754989853899,-3322.91662452,0.00019,2]
[378718246,1754989853908,-151.0,0.00019,2]
[378718248,1754989853917,-151.0,0.00019,2]
[378718250,1754989853926,-860.7498552,0.00019,2]
[378718252,1754989853935,-155.6137388,0.00019,2]
[378718254,1754989853944,-594.184226,0.00019,2]
[378718256,1754989853953,-162.3429487,0.00019,2]
[378718258,1754989853962,-306.0,0.00019,2]
[378718260,1754989853972,-579.8524338,0.00019,2]
[378718262,1754989853980,-164.25271,0.00019,2]
[378718264,1754989853991,-862.726464,0.00019,2]
[378718266,1754989854000,-784.9398451,0.00019,2]
[378718268,1754989854009,-158.0670161,0.00019014,2]
[378718270,1754989854021,-168.0,0.0001906,2]
[378718272,1754989854030,-353.7,0.00019072,2]
[378718274,1754989854039,-500.0,0.00019082,2]
[378718276,1754989854048,-436.15157528,0.0001909,2]
[378718278,1754989854057,-511.44,0.0001909,2]
[378718280,1754989854066,-460.0,0.0001909,2]
[378718282,1754989854075,-778.07,0.0001909,2]
[378718284,1754989854084,-460.0,0.0001909,2]
[378718286,1754989854092,-695.2,0.0001909,2]
[378718288,1754989854103,-3994.01,0.0001909,2]
[378718290,1754989854112,-460.0,0.0001909,2]
[378718291,1754989854121,-460.0,0.0001909,2]
[378718293,1754989854131,-607.67,0.0001909,2]
[378718295,1754989854140,-2824.63,0.0001909,2]
[378718297,1754989854149,-496.78,0.0001909,2]
[378718299,1754989854158,-850.45,0.0001909,2]
[378718301,1754989854167,-178.71184586,0.00019091,2]
[378718303,1754989854177,-2881.31,0.00019091,2]
[378718305,1754989854185,-624.47,0.00019091,2]
[378718307,1754989854195,-580.14,0.00019091,2]
[378718309,1754989854204,-1844.43,0.00019091,2]
[378718311,1754989854213,-3780.92,0.00019091,2]
[378718313,1754989854223,-151.0,0.00019091,2]
[378718315,1754989854232,-460.0,0.00019091,2]
[378718317,1754989854241,-852.8,0.00019091,2]
[378718319,1754989854250,-460.0,0.00019091,2]
[378718321,1754989854259,-1219.8,0.00019091,2]
[378718323,1754989854270,-565.03,0.00019091,2]
[378718325,1754989854279,-801.24,0.00019091,2]
[378718327,1754989854288,-1272.56,0.00019091,2]
[378718329,1754989854297,-832.96,0.00019091,2]
[378718331,1754989854307,-460.0,0.00019091,2]
[378718333,1754989854316,-420.9119391,0.00019091,2]
[378718335,1754989854325,-1059.69,0.00019091,2]
[378718337,1754989854334,-1297.9,0.00019091,2]
[378718339,1754989854344,-1696.21,0.00019091,2]
[378718341,1754989854354,-460.0,0.00019091,2]
[378718343,1754989854364,-500.0,0.00019092,2]
[378718345,1754989854374,-460.0,0.00019093,2]
[378718347,1754989854383,-460.0,0.00019093,2]
[378718349,1754989854393,-535.01,0.00019093,2]
[378718351,1754989854401,-390.63891836,0.00019093,2]
[378718353,1754989854411,-460.0,0.00019093,2]
[378718355,1754989854421,-460.0,0.00019093,2]
[378718357,1754989854430,-460.0,0.00019093,2]
[378718359,1754989854439,-460.0,0.00019093,2]
[378718361,1754989854450,-856.74,0.00019093,2]
[378718363,1754989854459,-460.0,0.00019093,2]
[378718365,1754989854468,-601.61,0.00019093,2]
[378718367,1754989854478,-622.63,0.00019093,2]
[378718369,1754989854487,-460.0,0.00019093,2]
[378718371,1754989854496,-460.0,0.00019093,2]
[378718373,1754989854505,-460.0,0.00019093,2]
[378718375,1754989854514,-460.0,0.00019093,2]
[378718377,1754989854526,-432.08724865,0.00019093,2]
[378718379,1754989854535,-460.0,0.00019093,2]
[378718381,1754989854544,-460.0,0.00019093,2]
[378718383,1754989854553,-582.68,0.00019093,2]
[378718385,1754989854563,-460.0,0.00019093,2]
[378718387,1754989854573,-460.0,0.00019093,2]
[378718389,1754989854582,-460.0,0.00019093,2]
[378718391,1754989854591,-519.88,0.00019093,2]
[378718393,1754989854600,-460.0,0.00019093,2]
[378718395,1754989854610,-913.33,0.00019093,2]
[378718397,1754989854619,-689.99,0.00019093,2]
[378718399,1754989854629,-460.0,0.00019093,2]
[378718401,1754989854638,-466.53537807,0.00019093,2]
[378718402,1754989854647,-460.0,0.00019093,2]
[378718405,1754989854658,-460.0,0.00019093,2]
[378718407,1754989854667,-460.0,0.00019093,2]
[378718408,1754989854676,-460.0,0.00019093,2]
[378718410,1754989854690,-460.0,0.00019093,2]
[378718412,1754989854699,-528.22972983,0.00019093,2]
[378718414,1754989854709,-568.02975479,0.00019093,2]
[378718416,1754989854718,-460.0,0.00019093,2]
[378718418,1754989854729,-731.05,0.00019093,2]
[378718420,1754989854739,-460.0,0.00019093,2]
[378718422,1754989854748,-525.35932693,0.00019093,2]
[378718424,1754989854759,-460.0,0.00019093,2]
[378718426,1754989854768,-460.0,0.00019093,2]
[378718429,1754989854777,-460.0,0.00019093,2]
[378718431,1754989854786,-460.0,0.00019093,2]
[378718433,1754989854796,-839.52,0.00019093,2]
[378718435,1754989854805,-980.86,0.00019093,2]
[378718437,1754989854814,-816.4,0.00019093,2]
[378718439,1754989854823,-460.0,0.00019093,2]
[378718441,1754989854832,-462.70042111,0.00019093,2]
[378718443,1754989854843,-575.45,0.00019093,2]
[378718445,1754989854852,-460.0,0.00019093,2]
[378718447,1754989854862,-264.96501802,0.00019093,2]
[378718449,1754989854871,-460.0,0.00019093,2]
[378718451,1754989854880,-548.90583723,0.00019093,2]
[378718452,1754989854890,-866.6,0.00019093,2]
[378718453,1754989854900,-460.0,0.00019093,2]
[378718454,1754989854910,-460.0,0.00019093,2]
[378718455,1754989854919,-638.72,0.00019093,2]
[378718456,1754989854928,-460.0,0.00019093,2]
[378718457,1754989854938,-460.0,0.00019093,2]
[378718458,1754989854947,-277.04727961,0.00019093,2]
[378718459,1754989854957,-460.0,0.00019093,2]
[378718460,1754989854966,-464.50442201,0.00019093,2]
[378718461,1754989854975,-460.0,0.00019093,2]
[378718462,1754989854985,-1440.43,0.00019093,2]
[378718463,1754989854994,-460.0,0.00019093,2]
[378718465,1754989855005,-460.0,0.00019093,2]
[378718467,1754989855015,-336.19999651,0.00019093,2]
[378718469,1754989855026,-460.0,0.00019093,2]
[378718471,1754989855037,-1053.87,0.00019093,2]
[378718473,1754989855047,-463.04525175,0.00019093,2]
[378718475,1754989855058,-468.1498531,0.00019093,2]
[378718477,1754989855068,-679.08,0.00019093,2]
[378718479,1754989855077,-460.0,0.00019093,2]
[378718481,1754989855087,-1390.83,0.00019093,2]
[378718483,1754989855096,-307.86371295,0.00019093,2]
[378718485,1754989855105,-466.54,0.00019093,2]
[378718487,1754989855114,-460.0,0.00019093,2]
[378718489,1754989855124,-698.56,0.00019093,2]
[378718491,1754989855133,-460.0,0.00019093,2]
[378718493,1754989855142,-460.0,0.00019093,2]
[378718495,1754989855151,-460.0,0.00019093,2]
[378718497,1754989855161,-463.83530554,0.00019093,2]
[378718499,1754989855169,-600.61,0.00019093,2]
[378718501,1754989855179,-460.0,0.00019093,2]
[378718503,1754989855188,-688.97,0.00019093,2]
[378718505,1754989855197,-1382.57,0.00019093,2]
[378718507,1754989855206,-1743.77,0.00019093,2]
[378718509,1754989855216,-9176.97,0.00019093,2]
[378718511,1754989855225,-424.2438335,0.00019093,2]
[378718513,1754989855234,-460.0,0.00019093,2]
[378718515,1754989855244,-463.69190026,0.00019093,2]
[378718517,1754989855254,-460.0,0.00019093,2]
[378718519,1754989855272,-460.0,0.00019093,2]
[378718521,1754989855288,-880.3,0.00019093,2]
[378718523,1754989855298,-2946.27,0.00019093,2]
[378718525,1754989855307,-460.0,0.00019093,2]
[378718527,1754989855317,-598.93,0.00019093,2]
[378718529,1754989855327,-464.64997532,0.00019093,2]
[378718531,1754989855336,-470.88975917,0.00019093,2]
[378718533,1754989855345,-460.0,0.00019093,2]
[378718535,1754989855354,-460.0,0.00019093,2]
[378718537,1754989855363,-460.0,0.00019093,2]
[378718539,1754989855373,-538.65908821,0.00019093,2]
[378718541,1754989855382,-460.0,0.00019093,2]
[378718543,1754989855391,-460.0,0.00019093,2]
[378718545,1754989855400,-460.0,0.00019093,2]
[378718547,1754989855410,-460.0,0.00019093,2]
[378718549,1754989855419,-4712.31,0.00019093,2]
[378718551,1754989855428,-2191.98,0.00019093,2]
[378718553,1754989855438,-461.38762913,0.00019093,2]
[378718555,1754989855447,-460.0,0.00019093,2]
[378718557,1754989855457,-460.0,0.00019093,2]
[378718559,1754989855467,-463.39297521,0.00019093,2]
[378718561,1754989855476,-460.0,0.00019093,2]
[378718563,1754989855486,-460.0,0.00019093,2]
[378718565,1754989855495,-460.0,0.00019093,2]
[378718567,1754989855505,-826.58,0.00019093,2]
[378718569,1754989855514,-590.73,0.00019093,2]
[378718571,1754989855524,-460.0,0.00019093,2]
[378718573,1754989855533,-460.0,0.00019093,2]
[378718575,1754989855543,-460.0,0.00019093,2]
[378718577,1754989855553,-722.38,0.00019093,2]
[378718579,1754989855562,-771.5,0.00019093,2]
[378718581,1754989855571,-460.45790305,0.00019093,2]
[378718583,1754989855580,-538.50851829,0.00019093,2]
[378718585,1754989855589,-460.0,0.00019093,2]
[378718587,1754989855599,-1280.88,0.00019093,2]
[378718589,1754989855608,-460.0,0.00019093,2]
[378718591,1754989855617,-460.0,0.00019093,2]
[378718593,1754989855626,-460.0,0.00019093,2]
[378718595,1754989855636,-151.0,0.000191,2]
[378718597,1754989855646,-151.0,0.000191,2]
[378718599,1754989855656,-151.0,0.000191,2]
[378718600,1754989855665,-151.0,0.000191,2]
[378718602,1754989855675,-151.0,0.000191,2]
[378718611,1754989855832,-169.951023,0.00019123,2]
[378718612,1754989855843,-500.0,0.00019123,2]
[378718614,1754989855853,-20533.64509567,0.0001916,2]
[378718616,1754989855863,-3457.047158,0.0001916,2]
[378718617,1754989855872,-3457.047158,0.0001916,2]
[378718619,1754989855882,-151.0,0.0001916,2]
[378718620,1754989855892,-500.0,0.00019173,2]
[378718622,1754989855902,-501.2477495,0.00019173,2]
[378718624,1754989855911,-500.0,0.00019173,2]
[378718625,1754989855920,-500.0,0.00019173,2]
[378718627,1754989855930,-500.0,0.00019173,2]
[378718628,1754989855939,-500.80613502,0.00019173,2]
[378718630,1754989855948,-212.91207987,0.00019173,2]
[378718632,1754989855958,-500.0,0.00019173,2]
[378718633,1754989855967,-500.29311373,0.00019173,2]
[378718635,1754989855976,-281.83181863,0.00019173,2]
[378718636,1754989855985,-500.0,0.00019173,2]
[378718638,1754989855995,-349.78746667,0.00019173,2]
[378718640,1754989856004,-500.10139685,0.00019173,2]
[378718641,1754989856013,-500.0,0.00019173,2]
[378718643,1754989856024,-500.83920195,0.00019173,2]
[378718645,1754989856034,-500.0,0.00019173,2]
[378718646,1754989856042,-158.49156836,0.00019173,2]
[378718648,1754989856052,-503.59885237,0.00019173,2]
[378718650,1754989856061,-500.94887245,0.00019173,2]
[378718651,1754989856070,-500.51751135,0.00019173,2]
[378718653,1754989856080,-500.0,0.00019173,2]
[378718654,1754989856089,-341.68386757,0.00019173,2]
[378718656,1754989856098,-500.0,0.00019173,2]
[378718658,1754989856108,-500.0,0.00019173,2]
[378718659,1754989856117,-158.49501972,0.00019173,2]
[378718661,1754989856128,-168.50153959,0.00019173,2]
[378718663,1754989856137,-400.20297603,0.00019173,2]
[378718664,1754989856146,-340.16250563,0.00019173,2]
[378718666,1754989856155,-157.49121041,0.00019173,2]
[378718667,1754989856164,-500.32990521,0.00019173,2]
[378718669,1754989856174,-158.16316797,0.00019173,2]
[378718671,1754989856184,-160.09656799,0.00019173,2]
[378718672,1754989856193,-500.0,0.00019173,2]
[378718674,1754989856202,-500.95977283,0.00019173,2]
[378718675,1754989856211,-584.15091993,0.00019173,2]
[378718677,1754989856221,-500.0,0.00019173,2]
[378718679,1754989856231,-500.93740303,0.00019173,2]
[378718680,1754989856240,-500.0,0.00019173,2]
[378718682,1754989856249,-500.47983404,0.00019173,2]
[378718684,1754989856258,-500.0,0.00019173,2]
[378718685,1754989856269,-151.0,0.00019178,2]
[378718687,1754989856280,-151.0,0.00019178,2]
[378718688,1754989856290,-151.0,0.00019178,2]
[378718690,1754989856300,-151.0,0.00019178,2]
[378718692,1754989856309,-151.0,0.00019178,2]
[378718693,1754989856321,-5000.0,0.00019178,2]
[378718695,1754989856330,-5000.0,0.00019178,2]
[378718697,1754989856340,-5000.0,0.00019178,2]
[378718698,1754989856349,-5000.0,0.00019178,2]
[378718700,1754989856358,-5000.0,0.00019178,2]
[378718701,1754989856368,-5000.0,0.00019178,2]
[378718703,1754989856377,-5000.0,0.00019178,2]
[378718705,1754989856387,-5000.0,0.00019178,2]
[378718706,1754989856396,-5000.0,0.00019178,2]
[378718708,1754989856405,-5000.0,0.00019178,2]
[378718710,1754989856415,-5000.0,0.00019178,2]
[378718711,1754989856424,-4584.03837793,0.00019178,2]
[378718713,1754989856433,-666.0,0.00019178,2]
[378718714,1754989856442,-150.0,0.00019178,2]
[378718716,1754989856451,-160.0,0.00019181,2]
[378718717,1754989856461,-576.0,0.00019191,2]
[378718719,1754989856470,-2095.32,0.00019191,2]
[378718721,1754989856480,-1918.85,0.00019191,2]
[378718722,1754989856489,-2635.68,0.00019191,2]
[378718724,1754989856500,-1506.4,0.00019191,2]
[378718726,1754989856509,-430.87988343,0.00019191,2]
[378718727,1754989856519,-460.0,0.00019191,2]
[378718729,1754989856528,-1237.41,0.00019191,2]
[378718730,1754989856537,-460.0,0.00019191,2]
[378718732,1754989856547,-3457.047158,0.00019191,2]
[378718734,1754989856556,-460.96902226,0.00019191,2]